fUSD/lending_fUSD_20251023
["ID","MTS","AMOUNT","RATE_DAILY","PERIOD"]
[392190872,1761247837684,-444.96973819,0.00036508,15]
[392190873,1761247837694,-151.0,0.00036609,30]
[392190874,1761247837705,-151.0,0.00036609,30]
[392190875,1761247837715,-151.0,0.00036609,30]
[392190876,1761247837724,-151.0,0.00036609,30]
[392190877,1761247837734,-151.0,0.00036609,30]
[392190878,1761247837743,-151.0,0.00036609,30]
[392190879,1761247837753,-147.13153207,0.00036609,30]
[392190880,1761247837780,-3.86846793,0.00036609,30]
[392190881,1761247837790,-12.53967137,0.00036609,30]
[392190882,1761247837805,-607.02526063,0.00036609,30]
[392190883,1761247837815,-619.564932,0.00036609,30]
[392190884,1761247837825,-46656.22145507,0.00036609,2]
[392190885,1761247839072,50738.33387402,0.00023087,2]
[392190887,1761247839675,-372.10756581,0.00023087,2]
[392190888,1761247839784,-2227.1272956,0.00023087,2]
[392190889,1761247840763,-24612.17662637,0.00023087,2]
[392190890,1761247840773,-64748.76783672,0.00026168,2]
[392190891,1761247841147,-13200.97752508,0.00026168,2]
[392190892,1761247841157,-77949.7453618,0.0002925,2]
[392190893,1761247841168,-77949.7453618,0.00032331,2]
[392190894,1761247841181,-225.560672,0.00036609,30]
[392190895,1761247841192,-619.564932,0.00036609,30]
[392190896,1761247841201,-225.560672,0.00036609,30]
[392190897,1761247841211,-619.564932,0.00036609,30]
[392190898,1761247841220,-500.0,0.00036609,120]
[392190899,1761247841230,-2128860.3787688,0.00036609,2]
[392190900,1761247841239,-2744.10257813,0.00036609,2]
[392190901,1761247841249,-219582.37685567,0.00036609,2]
[392190902,1761247841260,-153.58167845,0.00036609,2]
[392190903,1761247841269,-1702.62553106,0.00036609,2]
[392190904,1761247841282,-252.88495386,0.00036609,2]
[392190905,1761247841291,-169.56665046,0.00036609,2]
[392190906,1761247841301,-500.0,0.00036609,2]
[392190907,1761247841311,-1005.16488066,0.00036609,2]
[392190908,1761247841321,-1280.29657953,0.00036609,2]
[392190909,1761247841331,-247.23434087,0.00036609,2]
[392190910,1761247841341,-1057.22910308,0.00036609,2]
[392190911,1761247841350,-553.46387173,0.00036609,2]
[392190912,1761247841360,-9373.06441431,0.00036609,2]
[392190913,1761247841369,-1331.28237837,0.00036609,2]
[392190914,1761247841381,-3471.71218445,0.00036609,2]
[392190915,1761247841390,-2228.9890443,0.00036609,2]
[392190916,1761247841400,-23152.26740038,0.00036609,2]
[392190917,1761247841413,-758.72753568,0.00036609,2]
[392190918,1761247841422,-13020.73658942,0.00036609,2]
[392190919,1761247841433,-1948.20346017,0.00036609,2]
[392190920,1761247841443,-186.79944941,0.00036609,2]
[392190921,1761247841454,-5094.03213178,0.00036609,2]
[392190922,1761247841465,-16429.14095838,0.00036609,2]
[392190923,1761247841476,-643.0,0.00036609,2]
[392190924,1761247841487,-985.03343042,0.00036609,2]
[392190925,1761247841497,-581.57454563,0.00036609,2]
[392190926,1761247841506,-1862.70012963,0.00036609,2]
[392190927,1761247841516,-705700.72582838,0.00036609,2]
[392190928,1761247841527,-3289.12046447,0.00036609,2]
[392190929,1761247841537,-157.18265273,0.00036609,2]
[392190930,1761247841547,-177.99853192,0.00036609,2]
[392190931,1761247841557,-995929.29220618,0.00036609,2]
[392190932,1761247841567,-367.22819716,0.00036609,2]
[392190933,1761247841578,-7377.54452968,0.00036609,2]
[392190934,1761247841591,-550.0,0.00036609,2]
[392190935,1761247841600,-1023.65543439,0.00036609,2]
[392190936,1761247841609,-10859.0545998,0.00036609,2]
[392190937,1761247841620,-172367.49221258,0.00036609,2]
[392190938,1761247841630,-15143.40551851,0.00036609,2]
[392190939,1761247841639,-232.22205986,0.00036609,2]
[392190940,1761247841649,-176.23755081,0.00036609,2]
[392190941,1761247841659,-28467.55843195,0.00036609,2]
[392190942,1761247841668,-6000.0,0.00036609,2]
[392190943,1761247841678,-380.75217339,0.00036609,2]
[392190944,1761247841688,-1490.76216971,0.00036609,2]
[392190945,1761247841697,-1048.18831107,0.00036609,2]
[392190946,1761247841707,-5087.79774644,0.00036609,2]
[392190947,1761247841716,-1193.89985148,0.00036609,2]
[392190948,1761247841725,-1703.27611165,0.00036609,2]
[392190949,1761247841734,-571.20440165,0.00036609,2]
[392190950,1761247841743,-150.0,0.00036609,2]
[392190951,1761247841753,-7876.9474135,0.00036609,2]
[392190952,1761247841763,-1395.29638882,0.00036609,2]
[392190953,1761247841773,-5043.20150615,0.00036609,2]
[392190954,1761247841785,-635.27068886,0.00036609,2]
[392190955,1761247841795,-217.78475473,0.00036609,2]
[392190956,1761247841805,-166574.47031204,0.00036609,2]
[392190957,1761247841815,-1081.91315702,0.00036609,2]
[392190958,1761247841826,-2500.0,0.00036609,2]
[392190959,1761247841837,-587.34644258,0.00036609,2]
[392190960,1761247841847,-346.9753821,0.00036609,2]
[392190961,1761247841857,-1736.93807463,0.00036609,2]
[392190962,1761247841867,-1100.0,0.00036609,2]
[392190963,1761247841877,-925.16724693,0.00036609,2]
[392190964,1761247841887,-488.46024009,0.00036609,2]
[392190965,1761247841898,-15806.49367168,0.00036609,2]
[392190966,1761247841909,-1609.99815265,0.00036609,2]
[392190967,1761247841920,-57518.69685437,0.00036609,2]
[392190968,1761247841931,-556.14588636,0.00036609,2]
[392190969,1761247841942,-5077.06257085,0.00036609,2]
[392190970,1761247841951,-1026.2365898,0.00036609,2]
[392190971,1761247841961,-370.03034082,0.00036609,2]
[392190972,1761247841971,-2234.94902227,0.00036609,2]
[392190973,1761247841980,-15006.9303585,0.00036609,2]
[392190974,1761247841991,-23379.22086245,0.00036609,2]
[392190975,1761247842000,-1862.97402801,0.00036609,2]
[392190976,1761247842009,-314.68271601,0.00036609,2]
[392190977,1761247842018,-1134.19668365,0.00036609,2]
[392190978,1761247842030,-210084.6239921,0.00036609,2]
[392190979,1761247842046,-551.85,0.00036609,2]
[392190982,1761247842960,-249.1627563,0.00036,30]
[392190983,1761247842970,-225.560672,0.00036609,30]
[392190984,1761247842979,-427.2765717,0.00036609,30]
[392190993,1761247845710,-192.2883603,0.00036609,30]
[392190994,1761247845721,-619.564932,0.00036609,30]
[392190995,1761247845730,-225.560672,0.00036609,30]
[392190996,1761247845740,-225.560672,0.00036609,30]
[392190997,1761247845749,-225.560672,0.00036609,30]
[392190998,1761247845759,-213.15013745,0.00036609,30]
[392190999,1761247845878,-406.41479455,0.00036609,30]
[392191000,1761247845889,-619.564932,0.00036609,30]
[392191001,1761247845898,-225.560672,0.00036609,30]
[392191002,1761247845908,-225.560672,0.00036609,30]
[392191003,1761247845918,-289.052904,0.00036609,30]
[392191004,1761247845927,-1800.03603733,0.00036609,2]
[392191005,1761247845944,-151.000001,0.00036609,30]
[392191006,1761247845954,-297.50311399,0.00036609,2]
[392191007,1761247846086,-2163.15387031,0.00036609,2]
[392191010,1761247944003,200.0,0.00036599,30]
[392191011,1761247944451,300.0,0.00036599,30]
[392191012,1761247964533,214.8,0.00036599,30]
[392191013,1761247965305,214.8,0.00036599,30]
[392191014,1761247965975,214.8,0.00036599,30]
[392191015,1761247966598,214.8,0.00036599,30]
[392191016,1761247979088,175.0,0.000207,2]
[392191018,1761248199506,-220.6770794,0.00024932,2]
[392191019,1761248203774,-181.18711399,0.00024932,2]
[392191020,1761248243978,200.0,0.000366,30]
[392191021,1761248244801,300.0,0.000366,30]
[392191027,1761248406167,2198.93844314,0.00025966,120]
[392191028,1761248406798,195.0,0.00025449,120]
[392191029,1761248406899,195.0,0.00026549,120]
[392191033,1761248436390,-98.13580661,0.00024932,2]
[392191034,1761248436428,-250.0,0.00025966,2]
[392191035,1761248436463,-1018.05,0.00027,2]
[392191036,1761248436504,-195.0,0.00027425,120]
[392191037,1761248436534,-300.0,0.00027425,120]
[392191038,1761248436564,-372.91434912,0.00027425,120]
[392191039,1761248436593,-150.0,0.00027425,120]
[392191040,1761248436622,-234.38419339,0.00027425,2]
[392191041,1761248436653,-195.0,0.00027425,120]
[392191042,1761248436683,-250.0,0.00027425,2]
[392191043,1761248436715,-1153.73619604,0.00027425,120]
[392191044,1761248436732,-98.13580661,0.00027425,120]
[392191045,1761248436744,-250.0,0.00027425,120]
[392191046,1761248436755,-1018.05,0.00027425,120]
[392191047,1761248436767,-195.0,0.00027425,120]
[392191048,1761248436786,-4.37310307,0.00027425,120]
[392191049,1761248436795,-295.62689693,0.00027425,120]
[392191050,1761248436806,-372.91434912,0.00027425,120]
[392191051,1761248436819,-150.0,0.00027425,120]
[392191052,1761248436833,-234.38419339,0.00027425,120]
[392191053,1761248436844,-195.0,0.00027425,120]
[392191054,1761248436855,-250.0,0.00027425,120]
[392191055,1761248436868,-1002.07456056,0.00027425,120]
[392191056,1761248436881,-195.0,0.00027425,120]
[392191057,1761248436889,-1200.0,0.00027499,2]
[392191058,1761248436897,-322.22054516,0.000275,2]
[392191060,1761248488180,-695.82945484,0.000275,2]
[392191061,1761248488213,-1600.0,0.00029845,2]
[392191062,1761248488246,-250.0,0.0003025,2]
[392191063,1761248488278,-195.0,0.0003025,120]
[392191064,1761248544775,200.0,0.000366,30]
[392191065,1761248545352,300.0,0.000366,30]
[392191066,1761248554858,151.0,0.000275,2]
[392191067,1761248555459,156.587,0.00028048,2]
[392191068,1761248556122,162.380719,0.00028596,2]
[392191069,1761248556727,168.3888056,0.00029144,2]
[392191070,1761248557362,174.61919141,0.00029692,2]
[392191071,1761248557973,154.21937423,0.0003024,2]
[392191072,1761248564418,214.8,0.000366,30]
[392191073,1761248602868,500.0,0.00024932,2]
[392191074,1761248670432,375.0,0.000366,30]
[392191075,1761248680902,1000.0,0.000366,60]
[392191076,1761248693641,1000.0,0.000366,60]
[392191077,1761248705200,1000.0,0.000366,30]
[392191078,1761248705294,1000.0,0.000366,30]
[392191079,1761248705383,1000.0,0.000366,30]
[392191080,1761248706324,1000.0,0.000366,30]
[392191081,1761248706415,1000.0,0.000366,30]
[392191082,1761248706507,1000.0,0.000366,30]
[392191083,1761248706595,1000.0,0.000366,60]
[392191084,1761248707489,1000.0,0.000366,30]
[392191085,1761248707580,1000.0,0.000366,30]
[392191086,1761248707675,1000.0,0.000366,30]
[392191087,1761248708649,1000.0,0.000366,30]
[392191088,1761248708740,1000.0,0.000366,30]
[392191089,1761248709433,1000.0,0.000366,30]
[392191090,1761248710308,444.47159297,0.000366,30]
[392191091,1761248710397,1000.0,0.000366,30]
[392191092,1761248710568,1000.0,0.000366,30]
[392191093,1761248711445,1000.0,0.000366,30]
[392191094,1761248711693,1000.0,0.000366,30]
[392191095,1761248712321,947.25163687,0.000366,30]
[392191096,1761248712754,809.93197864,0.000366,30]
[392191097,1761248735107,-196.1161529,0.00031245,2]
[392191098,1761248735129,-300.0,0.00031775,120]
[392191099,1761248735154,-159.73970815,0.00033596,120]
[392191100,1761248829124,-140.26029185,0.00033596,120]
[392191101,1761248829146,-209.67372284,0.0003437,120]
[392191102,1761248830071,-90.32627716,0.0003437,120]
[392191103,1761248830091,-169.49855693,0.0003437,2]
[392191104,1761248831093,-80.50144307,0.0003437,2]
[392191105,1761248831114,-303.67488584,0.0003437,120]
[392191106,1761248847192,200.0,0.000366,30]
[392191107,1761248847804,300.0,0.000366,30]
[392191108,1761248888695,173.0,0.00031,120]
[392191109,1761248896365,91.60994025,0.00034197,2]
[392191110,1761248896389,763.40468133,0.00034197,2]
[392191111,1761248896413,570.4767,0.00034197,2]
[392191112,1761249003199,200.78959791,0.000366,120]
[392191113,1761249007676,153.0,0.00031,120]
[392191114,1761249024969,185.0,0.00031,120]
[392191119,1761249032106,-42.68625871,0.0003437,2]
[392191126,1761249032436,-617.99624244,0.0003437,2]
[392191127,1761249032445,-151.0,0.0003437,2]
[392191128,1761249032454,-316.18785359,0.00034596,2]
[392191129,1761249032463,-500.0,0.00034644,2]
[392191130,1761249032471,-159.52,0.00034744,2]
[392191131,1761249032480,-169.24,0.00034956,2]
[392191132,1761249032489,-1000.0,0.00035041,2]
[392191133,1761249032498,-1600.0,0.00035131,3]
[392191134,1761249032508,-400.0,0.00035131,3]
[392191135,1761249032518,-250.0,0.00035151,2]
[392191136,1761249032528,-391.0,0.00035222,3]
[392191137,1761249032537,-196.1161529,0.00035223,2]
[392191138,1761249032547,-666.0,0.00035309,3]
[392191139,1761249032557,-622.57,0.00035392,30]
[392191140,1761249032567,-200.0,0.00035438,7]
[392191141,1761249032577,-400.0,0.00035481,2]
[392191142,1761249032587,-400.0,0.00035481,3]
[392191143,1761249032596,-500.0,0.00035482,3]
[392191144,1761249032606,-150.0,0.00035986,2]
[392191145,1761249032615,-2010.35,0.00036,36]
[392191146,1761249032624,-200.0,0.00036101,2]
[392191147,1761249032633,-4955.337647,0.00036315,2]
[392191148,1761249032645,-500.0,0.00036432,5]
[392191149,1761249032654,-150.0,0.00036498,2]
[392191150,1761249032664,-500.0,0.00036498,7]
[392191151,1761249032674,-500.0,0.00036498,15]
[392191152,1761249032683,-252.0941242,0.00036498,15]
[392191153,1761249032693,-500.0,0.00036498,15]
[392191154,1761249032703,-500.0,0.00036498,15]
[392191155,1761249032712,-315.72544162,0.00036498,15]
[392191156,1761249032721,-500.0,0.00036498,15]
[392191157,1761249032731,-500.0,0.00036498,15]
[392191158,1761249032740,-500.0,0.00036498,15]
[392191159,1761249032749,-556.93,0.00036499,14]
[392191160,1761249032763,-679.212,0.00036499,45]
[392191161,1761249032772,-500.0,0.00036499,30]
[392191162,1761249032782,-500.0,0.00036499,30]
[392191163,1761249032793,-500.0,0.00036499,30]
[392191164,1761249032802,-500.0,0.00036499,30]
[392191165,1761249032812,-500.0,0.00036499,30]
[392191166,1761249032821,-500.0,0.00036499,30]
[392191167,1761249032831,-500.0,0.00036499,30]
[392191168,1761249032841,-500.0,0.00036499,30]
[392191169,1761249032852,-500.0,0.00036499,30]
[392191170,1761249032861,-500.0,0.00036499,30]
[392191171,1761249032871,-185.91282753,0.00036499,30]
[392191172,1761249032881,-500.0,0.00036548,10]
[392191173,1761249032890,-174.88928588,0.00036573,5]
[392191174,1761249032900,-500.0,0.00036573,5]
[392191175,1761249032909,-577.021354,0.00036573,5]
[392191176,1761249032918,-91.15667797,0.00036573,5]
[392191177,1761249032933,-205.0889401,0.00036573,5]
[392191178,1761249032943,-200.0,0.00036578,2]
[392191179,1761249032954,-500.0,0.00036578,2]
[392191180,1761249032964,-600.0,0.00036578,2]
[392191181,1761249032973,-398.30182732,0.00036578,2]
[392191182,1761249032987,-101.69817268,0.00036578,2]
[392191183,1761249032997,-200.30182732,0.00036578,2]
[392191184,1761249033012,-299.69817268,0.00036578,2]
[392191185,1761249033021,-35.65136232,0.00036578,2]
[392191190,1761249037738,-199.3398361,0.00036498,2]
[392191191,1761249037748,-563.05158764,0.00036498,2]
[392191192,1761249037763,-97.63091352,0.00036498,2]
[392191193,1761249037773,-464.34863768,0.00036578,2]
[392191194,1761249037783,-500.0,0.00036578,2]
[392191195,1761249037792,-276.23502916,0.00036578,2]
[392191196,1761249037806,-223.76497084,0.00036578,2]
[392191198,1761249037816,-291.24949437,0.00036578,2]
[392191243,1761249039954,-330.34125058,0.00036578,2]
[392191244,1761249039964,-208.75050563,0.00036578,2]
[392191245,1761249039973,-460.90824379,0.00036578,2]
[392191246,1761249039985,-39.09175621,0.00036578,2]
[392191247,1761249039994,-500.0,0.00036578,2]
[392191248,1761249040003,-500.0,0.00036578,2]
[392191249,1761249040013,-500.0,0.00036578,2]
[392191250,1761249040023,-151.0,0.00036578,2]
[392191251,1761249040032,-151.0,0.00036578,2]
[392191252,1761249040041,-151.0,0.00036578,2]
[392191253,1761249040049,-200.0,0.00036578,2]
[392191254,1761249040058,-151.0,0.00036578,2]
[392191255,1761249040067,-151.0,0.00036578,2]
[392191256,1761249040076,-151.0,0.00036578,2]
[392191257,1761249040086,-151.0,0.00036578,2]
[392191258,1761249040096,-151.0,0.00036578,2]
[392191259,1761249040106,-151.0,0.00036578,2]
[392191260,1761249040116,-150.80824379,0.00036578,2]
[392191261,1761249040137,-0.19175621,0.00036578,2]
[392191262,1761249040147,-151.0,0.00036578,2]
[392191263,1761249040160,-151.0,0.00036578,2]
[392191264,1761249040170,-135.72644143,0.00036578,2]
[392191265,1761249040186,-15.27355857,0.00036578,2]
[392191266,1761249040196,-151.0,0.00036578,2]
[392191267,1761249040205,-151.0,0.00036578,2]
[392191268,1761249040214,-151.0,0.00036578,2]
[392191269,1761249040224,-151.0,0.00036578,2]
[392191270,1761249040233,-151.0,0.00036578,2]
[392191271,1761249040242,-151.0,0.00036578,2]
[392191272,1761249040251,-151.0,0.00036578,2]
[392191273,1761249040260,-200.0,0.00036578,2]
[392191274,1761249040270,-200.0,0.00036587,2]
[392191275,1761249040279,-200.0,0.00036587,2]
[392191277,1761249040288,-249.18337873,0.00036587,2]
[392191279,1761249040298,-878.41,0.0003659,3]
[392191282,1761249040309,-311.47881674,0.00036599,15]
[392191284,1761249040319,-201.55628891,0.00036599,15]
[392191286,1761249040328,-500.0,0.00036599,120]
[392191287,1761249040339,-500.0,0.00036599,7]
[392191290,1761249040348,-500.0,0.00036599,120]
[392191292,1761249040357,-199.0,0.00036599,7]
[392191295,1761249040367,-94707.6297281,0.000366,2]
[392191297,1761249040378,-40792.53685124,0.000366,2]
[392191299,1761249040386,-179.51902844,0.000366,2]
[392191302,1761249040396,-19864.81361234,0.000366,2]
[392191304,1761249040405,-2178.83218282,0.000366,5]
[392191306,1761249040414,-408.52041162,0.000366,2]
[392191307,1761249040424,-1504.54574381,0.000366,2]
[392191309,1761249040434,-20567.49092452,0.000366,2]
[392191312,1761249040443,-24737.19900885,0.000366,2]
[392191314,1761249040452,-2474.68770705,0.000366,2]
[392191316,1761249040462,-3188.75366843,0.000366,2]
[392191318,1761249040471,-205.87613545,0.000366,2]
[392191320,1761249040480,-876.22538938,0.000366,2]
[392191321,1761249040489,-505.46150103,0.000366,2]
[392191323,1761249040499,-287.0188222,0.000366,2]
[392191324,1761249040507,-5771.89903856,0.000366,2]
[392191325,1761249040516,-1130.26343453,0.000366,2]
[392191326,1761249040526,-4648.22775778,0.000366,2]
[392191327,1761249040535,-1049.97830836,0.000366,2]
[392191328,1761249040544,-1715.87202315,0.000366,2]
[392191329,1761249040555,-185.25265247,0.000366,2]
[392191330,1761249040566,-156.3,0.000366,2]
[392191331,1761249040576,-5974.3441976,0.00036609,2]
[392191332,1761249040585,-2353.3938351,0.00036609,2]
[392191333,1761249040595,-150.0,0.00036609,30]
[392191334,1761249040605,-500.0,0.00036609,30]
[392191335,1761249040614,-500.0,0.00036609,30]
[392191336,1761249040624,-152.84304592,0.00036609,30]
[392191337,1761249040633,-500.0,0.00036609,120]
[392191338,1761249040643,-581.22513456,0.00036609,120]
[392191339,1761249040652,-500.0,0.00036609,120]
[392191340,1761249040661,-500.0,0.00036609,120]
[392191341,1761249040670,-500.0,0.00036609,120]
[392191342,1761249040680,-499.99999984,0.00036609,120]
[392191343,1761249040689,-500.0,0.00036609,120]
[392191344,1761249040698,-500.0,0.00036609,120]
[392191345,1761249040707,-500.0,0.00036609,120]
[392191346,1761249040717,-502.58030001,0.00036609,120]
[392191347,1761249040726,-200.0,0.00036609,2]
[392191348,1761249040735,-151.99993636,0.00036664,30]
[392191349,1761249040744,-500.0,0.00036673,5]
[392191350,1761249040754,-500.0,0.00036673,5]
[392191351,1761249040763,-500.0,0.00036673,5]
[392191352,1761249040773,-479.26697898,0.00036673,5]
[392191353,1761249040782,-500.0,0.00036673,5]
[392191354,1761249040791,-418.78876365,0.00036673,5]
[392191355,1761249040800,-500.0,0.00036673,2]
[392191356,1761249040811,-500.0,0.00036673,5]
[392191357,1761249040822,-500.75564392,0.00036673,5]
[392191358,1761249040832,-556.93,0.00036773,14]
[392191359,1761249040841,-238.59,0.00036873,8]
[392191360,1761249040850,-408.01639571,0.00036886,2]
[392191361,1761249040859,-3337.5081812,0.00036886,2]
[392191362,1761249040868,-500.0,0.0003695,2]
[392191363,1761249040878,-250.0,0.0003695,2]
[392191364,1761249040888,-500.0,0.0003695,2]
[392191365,1761249040898,-250.0,0.0003695,2]
[392191366,1761249040909,-151.0,0.0003695,2]
[392191367,1761249040919,-250.0,0.0003695,2]
[392191368,1761249040929,-500.0,0.0003695,2]
[392191369,1761249040938,-250.0,0.0003695,2]
[392191370,1761249040947,-152.1523856,0.0003695,2]
[392191371,1761249040958,-151.0,0.0003695,2]
[392191372,1761249040969,-500.0,0.0003695,2]
[392191373,1761249040978,-250.0,0.0003695,2]
[392191374,1761249040988,-151.0,0.0003695,2]
[392191375,1761249040997,-250.0,0.0003695,2]
[392191376,1761249041006,-500.0,0.0003695,2]
[392191377,1761249041015,-250.0,0.0003695,2]
[392191378,1761249041025,-160.0,0.0003695,2]
[392191379,1761249041034,-151.0,0.0003695,2]
[392191380,1761249041043,-721.12765535,0.0003695,2]
[392191381,1761249041054,-250.0,0.0003695,2]
[392191382,1761249041064,-500.0,0.0003695,2]
[392191383,1761249041074,-250.0,0.0003695,2]
[392191384,1761249041083,-151.0,0.0003695,2]
[392191385,1761249041092,-250.0,0.0003695,2]
[392191386,1761249041102,-500.0,0.0003695,2]
[392191387,1761249041111,-250.0,0.0003695,2]
[392191388,1761249041120,-151.0,0.0003695,2]
[392191389,1761249041130,-250.0,0.0003695,2]
[392191390,1761249041139,-500.0,0.0003695,2]
[392191391,1761249041149,-250.0,0.0003695,2]
[392191392,1761249041159,-151.0,0.0003695,2]
[392191393,1761249041168,-250.0,0.0003695,2]
[392191394,1761249041178,-500.0,0.0003695,2]
[392191395,1761249041188,-250.0,0.0003695,2]
[392191396,1761249041197,-151.0,0.0003695,2]
[392191397,1761249041207,-250.0,0.0003695,2]
[392191398,1761249041216,-500.0,0.0003695,2]
[392191399,1761249041226,-250.0,0.0003695,2]
[392191400,1761249041235,-151.0,0.0003695,2]
[392191401,1761249041244,-250.0,0.0003695,2]
[392191402,1761249041254,-500.0,0.0003695,2]
[392191403,1761249041264,-250.0,0.0003695,2]
[392191404,1761249041273,-151.0,0.0003695,2]
[392191405,1761249041283,-250.0,0.0003695,2]
[392191406,1761249041292,-151.0,0.0003695,2]
[392191407,1761249041305,-250.0,0.0003695,2]
[392191408,1761249041314,-250.0,0.0003695,2]
[392191409,1761249041329,-250.0,0.0003695,2]
[392191410,1761249041339,-250.0,0.0003695,2]
[392191411,1761249041349,-250.0,0.0003695,2]
[392191412,1761249041358,-500.0,0.0003695,2]
[392191413,1761249041367,-250.0,0.0003695,2]
[392191414,1761249041376,-250.0,0.0003695,2]
[392191415,1761249041386,-500.0,0.0003695,2]
[392191416,1761249041395,-250.0,0.0003695,2]
[392191417,1761249041404,-250.0,0.0003695,2]
[392191418,1761249041414,-500.0,0.0003695,2]
[392191419,1761249041424,-250.0,0.0003695,2]
[392191420,1761249041434,-250.0,0.0003695,2]
[392191421,1761249041447,-500.0,0.0003695,2]
[392191422,1761249041455,-250.0,0.0003695,2]
[392191423,1761249041464,-250.0,0.0003695,2]
[392191424,1761249041474,-500.0,0.0003695,2]
[392191425,1761249041483,-250.0,0.0003695,2]
[392191426,1761249041492,-250.0,0.0003695,2]
[392191427,1761249041501,-500.0,0.0003695,2]
[392191428,1761249041510,-250.0,0.0003695,2]
[392191429,1761249041520,-250.0,0.0003695,2]
[392191430,1761249041529,-500.0,0.0003695,2]
[392191431,1761249041539,-250.0,0.0003695,2]
[392191432,1761249041549,-578.20924308,0.0003695,2]
[392191433,1761249041558,-250.0,0.0003695,2]
[392191434,1761249041568,-250.0,0.0003695,2]
[392191435,1761249041578,-500.0,0.0003695,2]
[392191436,1761249041587,-250.0,0.0003695,2]
[392191437,1761249041596,-250.0,0.0003695,2]
[392191438,1761249041606,-250.0,0.0003695,2]
[392191439,1761249041615,-500.0,0.0003695,2]
[392191440,1761249041625,-250.0,0.0003695,2]
[392191441,1761249041635,-250.0,0.0003695,2]
[392191442,1761249041645,-500.0,0.0003695,2]
[392191443,1761249041656,-250.0,0.0003695,2]
[392191444,1761249041666,-574.12855637,0.0003695,2]
[392191445,1761249041676,-250.0,0.0003695,2]
[392191446,1761249041685,-500.0,0.0003695,2]
[392191447,1761249041694,-250.0,0.0003695,2]
[392191448,1761249041703,-250.0,0.0003695,2]
[392191449,1761249041712,-500.0,0.0003695,2]
[392191450,1761249041721,-250.0,0.0003695,2]
[392191451,1761249041731,-250.0,0.0003695,2]
[392191452,1761249041740,-500.0,0.0003695,2]
[392191453,1761249041750,-250.0,0.0003695,2]
[392191454,1761249041759,-500.0,0.0003695,2]
[392191455,1761249041769,-250.0,0.0003695,2]
[392191456,1761249041872,-500.0,0.0003695,2]
[392191457,1761249041882,-151.0,0.0003695,2]
[392191458,1761249041892,-250.0,0.0003695,2]
[392191459,1761249041900,-500.0,0.0003695,2]
[392191460,1761249041910,-151.0,0.0003695,2]
[392191461,1761249041919,-250.0,0.0003695,2]
[392191462,1761249041928,-500.0,0.0003695,2]
[392191463,1761249041938,-151.0,0.0003695,2]
[392191464,1761249041947,-500.0,0.0003695,2]
[392191465,1761249041955,-151.0,0.0003695,2]
[392191466,1761249041965,-151.0,0.0003695,2]
[392191467,1761249041974,-500.0,0.0003695,2]
[392191468,1761249041983,-151.0,0.0003695,2]
[392191469,1761249041992,-500.0,0.0003695,2]
[392191470,1761249042002,-151.0,0.0003695,2]
[392191471,1761249042011,-500.0,0.0003695,2]
[392191472,1761249042020,-151.0,0.0003695,2]
[392191473,1761249042030,-500.0,0.0003695,2]
[392191474,1761249042040,-151.0,0.0003695,2]
[392191475,1761249042049,-151.0,0.0003695,2]
[392191476,1761249042058,-151.0,0.0003695,2]
[392191477,1761249042079,-151.0,0.0003695,2]
[392191478,1761249042090,-277.35679052,0.0003695,2]